fUSD/lending_fUSD_20240419
["ID","MTS","AMOUNT","RATE_DAILY","PERIOD"]
[322981606,1713558653341,-500.0,0.00016712,2]
[322981607,1713558653350,-500.0,0.00016712,2]
[322981608,1713558653360,-942.87,0.00016712,2]
[322981609,1713558653369,-500.0,0.00016712,2]
[322981610,1713558653379,-500.0,0.00016712,2]
[322981611,1713558653388,-924.92,0.00016712,2]
[322981612,1713558653397,-1060.86,0.00016712,2]
[322981613,1713558653406,-500.0,0.00016712,2]
[322981614,1713558653415,-500.0,0.00016712,2]
[322981615,1713558653425,-500.0,0.00016712,2]
[322981616,1713558653433,-529.21,0.00016712,2]
[322981617,1713558653442,-1368.27,0.00016712,2]
[322981618,1713558653453,-500.0,0.00016712,2]
[322981619,1713558653464,-762.38,0.00016712,2]
[322981620,1713558653472,-618.39,0.00016712,2]
[322981621,1713558653482,-500.0,0.00016712,2]
[322981622,1713558653491,-500.0,0.00016712,2]
[322981623,1713558653499,-516.63,0.00016712,2]
[322981624,1713558653508,-921.3,0.00016712,2]
[322981625,1713558653517,-822.11,0.00016712,2]
[322981626,1713558653527,-980.83,0.00016712,2]
[322981627,1713558653536,-500.0,0.00016712,2]
[322981628,1713558653545,-966.29,0.00016712,2]
[322981629,1713558653554,-776.59,0.00016712,2]
[322981630,1713558653562,-504.91,0.00016712,2]
[322981631,1713558653572,-500.0,0.00016712,2]
[322981632,1713558653581,-500.0,0.00016712,2]
[322981633,1713558653590,-500.0,0.00016712,2]
[322981634,1713558653599,-500.0,0.00016712,2]
[322981635,1713558653609,-611.43,0.00016712,2]
[322981636,1713558653618,-500.0,0.00016712,2]
[322981637,1713558653627,-526.54,0.00016712,2]
[322981638,1713558653636,-1524.64,0.00016712,2]
[322981639,1713558653645,-541.48,0.00016712,2]
[322981640,1713558653654,-513.01,0.00016712,2]
[322981641,1713558653663,-934.53,0.00016712,2]
[322981642,1713558653672,-500.0,0.00016712,2]
[322981643,1713558653682,-574.85,0.00016712,2]
[322981644,1713558653691,-500.0,0.00016712,2]
[322981645,1713558653703,-573.33,0.00016712,2]
[322981646,1713558653713,-500.0,0.00016712,2]
[322981647,1713558653722,-900.02,0.00016712,2]
[322981648,1713558653731,-762.33,0.00016712,2]
[322981649,1713558653742,-500.0,0.00016712,2]
[322981650,1713558653751,-500.0,0.00016712,2]
[322981651,1713558653760,-500.0,0.00016712,2]
[322981652,1713558653769,-1522.13,0.00016712,2]
[322981653,1713558653779,-1831.31,0.00016712,2]
[322981654,1713558653788,-500.0,0.00016712,2]
[322981655,1713558653797,-657.63,0.00016712,2]
[322981656,1713558653806,-1321.86,0.00016712,2]
[322981657,1713558653815,-940.58,0.00016712,2]
[322981658,1713558653824,-500.0,0.00016712,2]
[322981659,1713558653833,-500.0,0.00016712,2]
[322981660,1713558653844,-500.0,0.00016712,2]
[322981661,1713558653853,-500.0,0.00016712,2]
[322981662,1713558653862,-591.92,0.00016712,2]
[322981663,1713558653873,-500.0,0.00016712,2]
[322981664,1713558653883,-500.0,0.00016712,2]
[322981665,1713558653893,-752.67,0.00016712,2]
[322981666,1713558653902,-500.0,0.00016712,2]
[322981667,1713558653912,-500.0,0.00016712,2]
[322981668,1713558653921,-687.77,0.00016712,2]
[322981669,1713558653930,-857.09,0.00016712,2]
[322981670,1713558653939,-500.0,0.00016712,2]
[322981671,1713558653949,-548.13,0.00016712,2]
[322981672,1713558653958,-1293.07,0.00016712,2]
[322981673,1713558653968,-500.0,0.00016712,2]
[322981674,1713558653977,-566.93,0.00016712,2]
[322981675,1713558653986,-500.0,0.00016712,2]
[322981676,1713558653996,-1010.54,0.00016712,2]
[322981677,1713558654006,-500.0,0.00016712,2]
[322981678,1713558654015,-500.0,0.00016712,2]
[322981679,1713558654025,-500.0,0.00016712,2]
[322981680,1713558654035,-500.0,0.00016712,2]
[322981681,1713558654044,-643.37,0.00016712,2]
[322981682,1713558654054,-1801.59,0.00016712,2]
[322981683,1713558654064,-500.0,0.00016712,2]
[322981684,1713558654074,-929.58,0.00016712,2]
[322981685,1713558654083,-723.2,0.00016712,2]
[322981686,1713558654093,-535.59,0.00016712,2]
[322981687,1713558654103,-500.0,0.00016712,2]
[322981688,1713558654113,-500.0,0.00016712,2]
[322981689,1713558654248,-972.61,0.00016712,2]
[322981690,1713558654259,-1172.43,0.00016712,2]
[322981691,1713558654269,-500.0,0.00016712,2]
[322981692,1713558654280,-500.0,0.00016712,2]
[322981693,1713558654290,-500.0,0.00016712,2]
[322981694,1713558654300,-965.98,0.00016712,2]
[322981695,1713558654310,-500.0,0.00016712,2]
[322981696,1713558654320,-1114.41,0.00016712,2]
[322981697,1713558654331,-500.0,0.00016712,2]
[322981698,1713558654341,-1096.71,0.00016712,2]
[322981699,1713558654351,-515.86,0.00016712,2]
[322981700,1713558654360,-564.3,0.00016712,2]
[322981701,1713558654371,-500.0,0.00016712,2]
[322981702,1713558654381,-791.0,0.00016712,2]
[322981703,1713558654391,-500.0,0.00016712,2]
[322981704,1713558654401,-500.0,0.00016712,2]
[322981705,1713558654411,-500.0,0.00016712,2]
[322981706,1713558654421,-750.36,0.00016712,2]
[322981707,1713558654431,-630.23,0.00016712,2]
[322981708,1713558654440,-548.24,0.00016712,2]
[322981709,1713558654450,-911.49,0.00016712,2]
[322981710,1713558654460,-524.33,0.00016712,2]
[322981711,1713558654469,-500.0,0.00016712,2]
[322981712,1713558654478,-500.0,0.00016712,2]
[322981713,1713558654488,-840.55,0.00016712,2]
[322981714,1713558654498,-500.0,0.00016712,2]
[322981715,1713558654507,-500.0,0.00016712,2]
[322981716,1713558654518,-500.0,0.00016712,2]
[322981717,1713558654528,-705.81,0.00016712,2]
[322981718,1713558654538,-673.55,0.00016712,2]
[322981719,1713558654547,-500.0,0.00016712,2]
[322981720,1713558654556,-500.0,0.00016712,2]
[322981721,1713558654566,-500.0,0.00016712,2]
[322981722,1713558654575,-500.0,0.00016712,2]
[322981723,1713558654585,-500.0,0.00016712,2]
[322981724,1713558654594,-500.0,0.00016712,2]
[322981725,1713558654604,-500.0,0.00016712,2]
[322981726,1713558654613,-502.97,0.00016712,2]
[322981727,1713558654626,-500.0,0.00016712,2]
[322981728,1713558654638,-500.0,0.00016712,2]
[322981729,1713558654648,-500.0,0.00016712,2]
[322981730,1713558654658,-802.83,0.00016712,2]
[322981731,1713558654669,-500.0,0.00016712,2]
[322981732,1713558654679,-500.0,0.00016712,2]
[322981733,1713558654690,-500.0,0.00016712,2]
[322981734,1713558654699,-500.0,0.00016712,2]
[322981735,1713558654712,-645.73,0.00016712,2]
[322981736,1713558654722,-500.0,0.00016712,2]
[322981737,1713558654732,-500.0,0.00016712,2]
[322981738,1713558654742,-500.0,0.00016712,2]
[322981739,1713558654753,-750.08,0.00016712,2]
[322981740,1713558654763,-1439.15,0.00016712,2]
[322981741,1713558654773,-674.26,0.00016712,2]
[322981742,1713558654783,-926.09,0.00016712,2]
[322981743,1713558654793,-500.0,0.00016712,2]
[322981744,1713558654802,-500.0,0.00016712,2]
[322981745,1713558654811,-500.0,0.00016712,2]
[322981746,1713558654820,-500.0,0.00016712,2]
[322981747,1713558654829,-554.92,0.00016712,2]
[322981748,1713558654839,-555.33,0.00016712,2]
[322981749,1713558654849,-500.0,0.00016712,2]
[322981750,1713558654860,-702.4,0.00016712,2]
[322981751,1713558654871,-500.0,0.00016712,2]
[322981752,1713558654880,-500.0,0.00016712,2]
[322981753,1713558654890,-500.0,0.00016712,2]
[322981754,1713558654899,-984.7,0.00016712,2]
[322981755,1713558654909,-663.94,0.00016712,2]
[322981756,1713558654919,-1162.46,0.00016712,2]
[322981757,1713558654929,-500.0,0.00016712,2]
[322981758,1713558654939,-500.0,0.00016712,2]
[322981759,1713558654949,-500.0,0.00016712,2]
[322981760,1713558654958,-1506.4,0.00016712,2]
[322981761,1713558654967,-1226.98,0.00016712,2]
[322981762,1713558654977,-749.03,0.00016712,2]
[322981763,1713558654986,-567.17,0.00016712,2]
[322981764,1713558654995,-2038.23,0.00016712,2]
[322981765,1713558655005,-500.0,0.00016712,2]
[322981766,1713558655014,-500.0,0.00016712,2]
[322981767,1713558655024,-500.0,0.00016712,2]
[322981768,1713558655033,-470.57808053,0.00016712,2]
[322981769,1713558655042,-1171.53,0.00016712,2]
[322981770,1713558655052,-500.0,0.00016712,2]
[322981771,1713558655062,-514.84,0.00016712,2]
[322981772,1713558655072,-500.0,0.00016712,2]
[322981773,1713558655081,-667.08,0.00016712,2]
[322981774,1713558655091,-500.0,0.00016712,2]
[322981775,1713558655101,-1533.91,0.00016712,2]
[322981776,1713558655111,-500.0,0.00016712,2]
[322981777,1713558655122,-665.29,0.00016712,2]
[322981778,1713558655132,-500.0,0.00016712,2]
[322981779,1713558655142,-500.0,0.00016712,2]
[322981780,1713558655151,-548.78,0.00016712,2]
[322981781,1713558655161,-1072.73,0.00016712,2]
[322981782,1713558655170,-500.0,0.00016712,2]
[322981783,1713558655180,-502.25,0.00016712,2]
[322981784,1713558655189,-1385.81,0.00016712,2]
[322981785,1713558655199,-500.0,0.00016712,2]
[322981786,1713558655208,-500.0,0.00016712,2]
[322981787,1713558655218,-500.0,0.00016712,2]
[322981788,1713558655227,-1795.37,0.00016712,2]
[322981789,1713558655237,-1981.62,0.00016712,2]
[322981790,1713558655246,-500.0,0.00016712,2]
[322981791,1713558655255,-770.92,0.00016712,2]
[322981792,1713558655264,-500.0,0.00016712,2]
[322981793,1713558655273,-500.0,0.00016712,2]
[322981794,1713558655283,-1021.97,0.00016712,2]
[322981795,1713558655292,-500.0,0.00016712,2]
[322981796,1713558655302,-1109.83,0.00016712,2]
[322981797,1713558655311,-500.0,0.00016712,2]
[322981798,1713558655321,-742.73,0.00016712,2]
[322981799,1713558655330,-500.0,0.00016712,2]
[322981800,1713558655339,-1326.76,0.00016712,2]
[322981801,1713558655348,-500.0,0.00016712,2]
[322981802,1713558655358,-1489.31,0.00016712,2]
[322981803,1713558655368,-183.203284,0.00016712,2]
[322981804,1713558655378,-517.49,0.00016712,2]
[322981805,1713558655389,-500.0,0.00016712,2]
[322981806,1713558655399,-500.0,0.00016712,2]
[322981807,1713558655408,-500.0,0.00016712,2]
[322981808,1713558655418,-634.15,0.00016712,2]
[322981809,1713558655428,-565.85,0.00016712,2]
[322981810,1713558655437,-878.83,0.00016712,2]
[322981811,1713558655446,-1303.11,0.00016712,2]
[322981812,1713558655455,-908.32,0.00016712,2]
[322981813,1713558655464,-500.0,0.00016712,2]
[322981814,1713558655473,-500.0,0.00016712,2]
[322981815,1713558655483,-1203.17,0.00016712,2]
[322981816,1713558655492,-500.0,0.00016712,2]
[322981817,1713558655501,-688.53,0.00016712,2]
[322981818,1713558655511,-911.79,0.00016712,2]
[322981819,1713558655520,-2108.55,0.00016712,2]
[322981820,1713558655530,-500.0,0.00016712,2]
[322981821,1713558655539,-754.36,0.00016712,2]
[322981822,1713558655549,-437.2,0.00016712,2]
[322981823,1713558655559,-580.38,0.00016712,2]
[322981824,1713558655568,-500.0,0.00016712,2]
[322981825,1713558655578,-500.0,0.00016712,2]
[322981826,1713558655587,-500.0,0.00016712,2]
[322981827,1713558655596,-1446.67,0.00016712,2]
[322981828,1713558655606,-500.0,0.00016712,2]
[322981829,1713558655616,-713.91,0.00016712,2]
[322981830,1713558655625,-500.0,0.00016712,2]
[322981831,1713558655634,-500.0,0.00016712,2]
[322981832,1713558655643,-1128.95,0.00016712,2]
[322981833,1713558655653,-500.0,0.00016712,2]
[322981834,1713558655662,-500.0,0.00016712,2]
[322981835,1713558655672,-500.0,0.00016712,2]
[322981836,1713558655682,-500.0,0.00016712,2]
[322981837,1713558655691,-500.0,0.00016712,2]
[322981838,1713558655701,-666.83,0.00016712,2]
[322981839,1713558655714,-615.31,0.00016712,2]
[322981840,1713558655723,-500.0,0.00016712,2]
[322981841,1713558655733,-150.0,0.00016712,2]
[322981842,1713558655743,-2234.42,0.00016712,2]
[322981843,1713558655756,-500.0,0.00016712,2]
[322981844,1713558655766,-500.0,0.00016712,2]
[322981845,1713558655775,-500.0,0.00016712,2]
[322981846,1713558655787,-1631.04,0.00016712,2]
[322981847,1713558655796,-1838.4,0.00016712,2]
[322981848,1713558655805,-500.0,0.00016712,2]
[322981849,1713558655815,-500.0,0.00016712,2]
[322981850,1713558655826,-500.0,0.00016712,2]
[322981851,1713558655836,-500.0,0.00016712,2]
[322981852,1713558655846,-304.94,0.00016712,2]
[322981853,1713558655855,-500.0,0.00016712,2]
[322981854,1713558655864,-1286.54,0.00016712,2]
[322981855,1713558655874,-1226.94,0.00016712,2]
[322981856,1713558655883,-500.0,0.00016712,2]
[322981857,1713558655892,-500.0,0.00016712,2]
[322981858,1713558655901,-689.78,0.00016712,2]
[322981859,1713558655910,-500.0,0.00016712,2]
[322981860,1713558655920,-500.0,0.00016712,2]
[322981861,1713558655929,-500.0,0.00016712,2]
[322981862,1713558655939,-986.26,0.00016712,2]
[322981863,1713558655948,-890.03,0.00016712,2]
[322981864,1713558655957,-566.73,0.00016712,2]
[322981865,1713558655966,-1884.35,0.00016712,2]
[322981866,1713558655975,-500.0,0.00016712,2]
[322981867,1713558655984,-500.0,0.00016712,2]
[322981868,1713558655993,-500.0,0.00016712,2]
[322981869,1713558656002,-500.0,0.00016712,2]
[322981870,1713558656011,-500.0,0.00016712,2]
[322981871,1713558656021,-500.0,0.00016712,2]
[322981872,1713558656030,-835.27,0.00016712,2]
[322981873,1713558656041,-1597.0,0.00016712,2]
[322981874,1713558656054,-500.0,0.00016712,2]
[322981875,1713558656064,-901.81,0.00016712,2]
[322981876,1713558656073,-584.58,0.00016712,2]
[322981877,1713558656082,-894.03,0.00016712,2]
[322981878,1713558656091,-500.0,0.00016712,2]
[322981879,1713558656100,-500.0,0.00016712,2]
[322981880,1713558656110,-823.61,0.00016712,2]
[322981881,1713558656120,-1852.86,0.00016712,2]
[322981882,1713558656129,-500.0,0.00016712,2]
[322981883,1713558656138,-506.62,0.00016712,2]
[322981884,1713558656148,-562.63,0.00016712,2]
[322981885,1713558656158,-1834.86,0.00016712,2]
[322981886,1713558656167,-736.13,0.00016712,2]
[322981887,1713558656178,-622.29,0.00016712,2]
[322981888,1713558656191,-500.0,0.00016712,2]
[322981889,1713558656201,-1535.02,0.00016712,2]
[322981890,1713558656212,-1434.48,0.00016712,2]
[322981891,1713558656221,-637.75,0.00016712,2]
[322981892,1713558656230,-2027.82,0.00016712,2]
[322981893,1713558656239,-665.5,0.00016712,2]
[322981894,1713558656248,-779.83,0.00016712,2]
[322981895,1713558656258,-500.0,0.00016712,2]
[322981896,1713558656267,-231.71995881,0.00016712,2]
[322981897,1713558656277,-1930.96,0.00016712,2]
[322981898,1713558656286,-2173.04,0.00016712,2]
[322981899,1713558656295,-1585.43,0.00016712,2]
[322981900,1713558656306,-500.0,0.00016712,2]
[322981901,1713558656318,-2833.81,0.00016712,2]
[322981902,1713558656329,-2818.31,0.00016712,2]
[322981903,1713558656652,-981.0,0.00016712,2]
[322981904,1713558656662,-1539.68,0.00016712,2]
[322981905,1713558656671,-1078.9,0.00016712,2]
[322981906,1713558656680,-706.63,0.00016712,2]
[322981907,1713558656690,-1178.1,0.00016712,2]
[322981908,1713558656699,-500.0,0.00016712,2]
[322981909,1713558656712,-531.56,0.00016712,2]
[322981910,1713558656722,-500.0,0.00016712,2]
[322981911,1713558656732,-2756.89,0.00016712,2]
[322981912,1713558656742,-500.0,0.00016712,2]
[322981913,1713558656754,-500.0,0.00016712,2]
[322981914,1713558656763,-2012.17,0.00016712,2]
[322981915,1713558656773,-500.0,0.00016712,2]
[322981916,1713558656782,-500.0,0.00016712,2]
[322981917,1713558656791,-4978.06,0.00016712,2]
[322981918,1713558656800,-520.31,0.00016712,2]
[322981919,1713558656810,-759.84,0.00016712,2]
[322981920,1713558656819,-1492.24,0.00016712,2]
[322981921,1713558656829,-775.55,0.00016712,2]
[322981922,1713558656839,-500.0,0.00016712,2]
[322981923,1713558656848,-2867.16,0.00016712,2]
[322981924,1713558656859,-2105.83,0.00016712,2]
[322981925,1713558656869,-500.0,0.00016712,2]
[322981926,1713558656879,-3673.92,0.00016712,2]
[322981927,1713558656889,-531.69,0.00016712,2]
[322981928,1713558656899,-500.0,0.00016712,2]
[322981929,1713558656909,-773.55,0.00016712,2]
[322981930,1713558656918,-1901.18,0.00016712,2]
[322981931,1713558656928,-507.64997696,0.00016712,2]
[322981932,1713558656937,-1126.86,0.00016712,2]
[322981933,1713558656946,-4151.97,0.00016712,2]
[322981934,1713558656956,-1365.51,0.00016712,2]
[322981935,1713558656966,-500.0,0.00016712,2]
[322981936,1713558656975,-1673.46,0.00016712,2]
[322981937,1713558656985,-500.0,0.00016712,2]
[322981938,1713558656994,-500.0,0.00016712,2]
[322981939,1713558657003,-500.0,0.00016712,2]
[322981940,1713558657012,-15455.62,0.00016712,2]
[322981941,1713558657021,-500.0,0.00016712,2]
[322981942,1713558657031,-2247.74,0.00016712,2]
[322981943,1713558657041,-500.0,0.00016712,2]
[322981944,1713558657051,-500.0,0.00016712,2]
[322981945,1713558657060,-1774.68,0.00016712,2]
[322981946,1713558657069,-1711.0,0.00016712,2]
[322981947,1713558657078,-1614.61,0.00016712,2]
[322981948,1713558657088,-532.87,0.00016712,2]
[322981949,1713558657098,-500.0,0.00016712,2]
[322981950,1713558657107,-22376.22,0.00016712,2]
[322981951,1713558657117,-1831.63,0.00016712,2]
[322981952,1713558657127,-500.0,0.00016712,2]
[322981953,1713558657137,-608.73,0.00016712,2]
[322981954,1713558657147,-500.0,0.00016712,2]
[322981955,1713558657156,-500.0,0.00016712,2]
[322981956,1713558657166,-2843.45,0.00016712,2]
[322981957,1713558657175,-832.11,0.00016712,2]
[322981958,1713558657185,-1187.25,0.00016712,2]
[322981959,1713558657194,-500.0,0.00016712,2]
[322981960,1713558657204,-939.11,0.00016712,2]
[322981961,1713558657213,-3099.84,0.00016712,2]
[322981962,1713558657223,-176.89433699,0.00016712,2]
[322981963,1713558657232,-617.65665461,0.00016712,2]
[322981964,1713558657242,-641.78,0.00016712,2]
[322981965,1713558657251,-500.0,0.00016712,2]
[322981966,1713558657261,-1473.43,0.00016712,2]
[322981967,1713558657270,-2447.45,0.00016712,2]
[322981968,1713558657280,-1367.83,0.00016712,2]
[322981969,1713558657290,-1374.8,0.00016712,2]
[322981970,1713558657300,-1062.13,0.00016712,2]
[322981971,1713558657310,-1995.88,0.00016712,2]
[322981972,1713558657321,-500.0,0.00016712,2]
[322981973,1713558657330,-500.0,0.00016712,2]
[322981974,1713558657340,-1446.9,0.00016712,2]
[322981975,1713558657349,-500.0,0.00016712,2]
[322981976,1713558657359,-5998.3,0.00016712,2]
[322981977,1713558657369,-982.34,0.00016712,2]
[322981978,1713558657378,-500.0,0.00016712,2]
[322981979,1713558657388,-2778.28,0.00016712,2]
[322981980,1713558657397,-500.0,0.00016712,2]
[322981981,1713558657407,-614.13,0.00016712,2]
[322981982,1713558657417,-2661.9,0.00016712,2]
[322981983,1713558657426,-1081.13,0.00016712,2]
[322981984,1713558657436,-1594.83,0.00016712,2]
[322981985,1713558657446,-592.04,0.00016712,2]
[322981986,1713558657455,-2674.17,0.00016712,2]
[322981987,1713558657465,-500.0,0.00016712,2]
[322981988,1713558657475,-529.78,0.00016712,2]
[322981989,1713558657484,-19629.24,0.00016712,2]
[322981990,1713558657494,-500.0,0.00016712,2]
[322981991,1713558657503,-671.7,0.00016712,2]
[322981992,1713558657512,-656.4,0.00016712,2]
[322981993,1713558657521,-500.0,0.00016712,2]
[322981994,1713558657530,-3403.96,0.00016712,2]
[322981995,1713558657540,-686.82,0.00016712,2]
[322981996,1713558657549,-1621.07,0.00016712,2]
[322981997,1713558657558,-27021.49,0.00016712,2]
[322981998,1713558657567,-1097.82,0.00016712,2]
[322981999,1713558657577,-151.0,0.00016712,2]
[322982000,1713558657586,-151.0,0.00016712,2]
[322982001,1713558657595,-2781.27,0.00016712,2]
[322982002,1713558657605,-312.06503721,0.00016712,2]
[322982003,1713558658192,-187.93496279,0.00016712,2]
[322982004,1713558658202,-518.77,0.00016712,2]
[322982005,1713558658212,-91.4151423,0.00016712,2]
[322982006,1713558658223,-408.5848577,0.00016712,2]
[322982007,1713558658234,-1865.15,0.00016712,2]
[322982008,1713558658243,-1051.2651423,0.00016712,2]
[322982009,1713558658256,-454.3848577,0.00016712,2]
[322982010,1713558658266,-319.7490145,0.00016712,2]
[322982011,1713558658424,-1133.07,0.00016712,2]
[322982012,1713558658965,-989.474,0.00015392,2]
[322982013,1713558658974,-21.0260025,0.00016438,2]
[322982014,1713558658986,-608.5039975,0.00016438,2]
[322982015,1713558658995,-373.184184,0.00016438,2]
[322982016,1713558659004,-50.90146637,0.00016712,2]
[322982017,1713558659102,-769.34473658,0.00016712,2]
[322982018,1713558660591,-2041.62715847,0.00015391,2]
[322982019,1713558660605,-315.74323197,0.00015391,2]
[322982020,1713558660615,-326.49836803,0.00015392,2]
[322982021,1713558660630,-431.53363197,0.00015392,2]
[322982022,1713558660641,-2055.33397497,0.00016338,2]
[322982023,1713558660654,-2314.76,0.00016338,2]
[322982024,1713558660684,-454.2101145,0.00016338,2]
[322982025,1713558660697,-644.70431179,0.00016338,2]
[322982026,1713558660757,-4530.99159874,0.00016338,2]
[322982027,1713558660768,-555.14,0.00016438,2]
[322982028,1713558660778,-151.0,0.00016438,2]
[322982029,1713558660790,-4799.27478255,0.00016712,2]
[322982030,1713558660801,-1870.47,0.00016712,2]
[322982031,1713558660813,-2337.11,0.00016712,2]
[322982032,1713558660824,-2088.66,0.00016712,2]
[322982033,1713558660835,-870.21,0.00016712,2]
[322982034,1713558660846,-500.0,0.00016712,2]
[322982035,1713558660858,-500.0,0.00016712,2]
[322982036,1713558660869,-643.07,0.00016712,2]
[322982037,1713558660880,-3238.12,0.00016712,2]
[322982038,1713558660890,-2554.05,0.00016712,2]
[322982039,1713558660900,-930.69,0.00016712,2]
[322982040,1713558660911,-5501.97,0.00016712,2]
[322982041,1713558660921,-3262.29,0.00016712,2]
[322982042,1713558660932,-2111.4,0.00016712,2]
[322982043,1713558660943,-1387.08,0.00016712,2]
[322982044,1713558660955,-1271.32,0.00016712,2]
[322982045,1713558660966,-615.06,0.00016712,2]
[322982046,1713558660976,-670.8,0.00016712,2]
[322982047,1713558660987,-1017.29,0.00016712,2]
[322982048,1713558660997,-694.44,0.00016712,2]
[322982049,1713558661008,-9197.07,0.00016712,2]
[322982050,1713558661019,-500.0,0.00016712,2]
[322982051,1713558661029,-500.0,0.00016712,2]
[322982052,1713558661040,-500.0,0.00016712,2]
[322982053,1713558661051,-3282.52,0.00016712,2]
[322982054,1713558661064,-500.0,0.00016712,2]
[322982055,1713558661074,-1222.62,0.00016712,2]
[322982056,1713558661085,-1149.09,0.00016712,2]
[322982057,1713558661096,-562.15,0.00016712,2]
[322982058,1713558661106,-808.7,0.00016712,2]
[322982059,1713558661117,-1500.76,0.00016712,2]
[322982060,1713558661129,-500.0,0.00016712,2]
[322982061,1713558661141,-519.96,0.00016712,2]
[322982062,1713558661153,-1207.03,0.00016712,2]
[322982063,1713558661164,-2312.01,0.00016712,2]
[322982064,1713558661175,-1118.42,0.00016712,2]
[322982065,1713558661185,-1762.22,0.00016712,2]
[322982066,1713558661196,-500.0,0.00016712,2]
[322982067,1713558661207,-4059.65,0.00016712,2]
[322982068,1713558661218,-571.65,0.00016712,2]
[322982069,1713558661228,-500.0,0.00016712,2]
[322982070,1713558661239,-5518.69,0.00016712,2]
[322982071,1713558661249,-500.0,0.00016712,2]
[322982072,1713558661260,-500.0,0.00016712,2]
[322982073,1713558661271,-1350.78,0.00016712,2]
[322982074,1713558661281,-500.0,0.00016712,2]
[322982075,1713558661291,-2884.4,0.00016712,2]
[322982076,1713558661302,-2694.39,0.00016712,2]
[322982077,1713558661312,-8309.43,0.00016712,2]
[322982078,1713558661323,-1430.03,0.00016712,2]
[322982079,1713558661333,-500.0,0.00016712,2]
[322982080,1713558661343,-500.0,0.00016712,2]
[322982081,1713558661353,-824.91,0.00016712,2]
[322982082,1713558661363,-2575.52,0.00016712,2]
[322982083,1713558661374,-2491.93,0.00016712,2]
[322982084,1713558661384,-500.0,0.00016712,2]
[322982085,1713558661394,-500.0,0.00016712,2]
[322982086,1713558661404,-500.0,0.00016712,2]
[322982087,1713558661414,-817.25,0.00016712,2]
[322982088,1713558661425,-500.0,0.00016712,2]
[322982089,1713558661435,-2436.91,0.00016712,2]
[322982090,1713558661445,-1081.23,0.00016712,2]
[322982091,1713558661455,-2044.46,0.00016712,2]
[322982092,1713558661466,-500.0,0.00016712,2]
[322982093,1713558661476,-3351.15,0.00016712,2]
[322982094,1713558661487,-1023.28,0.00016712,2]
[322982095,1713558661498,-534.93,0.00016712,2]
[322982096,1713558661509,-507.38,0.00016712,2]
[322982097,1713558661520,-1531.52,0.00016712,2]
[322982098,1713558661530,-500.0,0.00016712,2]
[322982099,1713558661540,-653.78,0.00016712,2]
[322982100,1713558661551,-989.79,0.00016712,2]
[322982101,1713558661562,-1345.11,0.00016712,2]
[322982102,1713558661573,-627.88,0.00016712,2]
[322982103,1713558661583,-1338.95,0.00016712,2]
[322982104,1713558661593,-596.73,0.00016712,2]
[322982105,1713558661603,-500.0,0.00016712,2]